[Event "Guimaraes Open 2018"]
[Site "Guimaraes"]
[Date "2018.10.07"]
[Round "6"]
[White "Machado, Tomas Dias"]
[Black "Dias, Ivo Rodrigues"]
[Result "1/2-1/2"]
[ECO "B42"]
[WhiteElo "1966"]
[BlackElo "2174"]
[Annotator "NA"]
[PlyCount "35"]
[EventDate "2018.10.04"]
[EventType "swiss"]
[EventCountry "POR"]
[SourceTitle "playchess.com"]
[Source "ChessBase"]
[SourceQuality "1"]
[TimeControl "5400+30"]

1. e4 {[%emt 0:00:18]} c5 {[%emt 0:00:49]} 2. Nf3 {[%emt 0:00:14]} e6 {[%emt 0:00:24]} 3. d4 {[%emt 0:00:11]} cxd4 {[%emt 0:00:04]} 4. Nxd4 {[%emt 0:00:08]} a6 {[%emt 0:00:44]} 5. Bd3 {[%emt 0:00:50]} Nf6 {[%emt 0:00:18]} 6. O-O {[%emt 0:01:31]} d6 {[%emt 0:00:15]} 7. b3 {[%emt 0:02:32]} Be7 {[%emt 0:00:17]} 8. Bb2 {[%emt 0:00:57]} O-O {[%emt 0:00:37]} 9. Nd2 {[%emt 0:03:58]} Qc7 {[%emt 0:01:03]} 10. c4 {[%emt 0:00:44]} Nbd7 {[%emt 0:00:24]} 11. Qe2 {[%emt 0:01:59] B42: Sicilian: Kan Variation: 5 Bd3} Re8 {[%emt 0:01:56] LiveBook: 3 Games} 12. Rae1 {[%emt 0:03:25]} Bf8 {[%emt 0:06:38]} 13. Bc2 $146 {[%emt 0:06:17]} ({Predecessor:} 13. Kh1 b6 14. Bb1 Bb7 15. f4 g6 16. N4f3 e5 17. f5 Bg7 18. Ng5 Bc6 19. Rf3 {½-½ (19) Hernandez Guerrero,G (2531)-Klaasen,C (2143) Durban 2014}) 13... b5 {[%emt 0:04:42]} 14. Bb1 {[%emt 0:10:50]} bxc4 {[%emt 0:07:33]} 15. Qxc4 {[%emt 0:07:40]} Qa5 {[%emt 0:01:53]} 16. b4 {[%emt 0:10:51]} Qh5 {[%emt 0:01:13]} 17. Re3 {[%emt 0:04:58]} Ne5 $11 {[%emt 0:20:39]} ({Don't go for} 17... Ng4 $2 18. Rh3 $18) 18. Qc2 {[%emt 0:05:03]} 1/2-1/2

[Event "Guimaraes Open 2018"]
[Site "Guimaraes"]
[Date "2018.10.07"]
[Round "6"]
[White "Bazan Solera, Manuel"]
[Black "Pinto, Andre Jorge Pimpare"]
[Result "1-0"]
[ECO "A06"]
[WhiteElo "1932"]
[BlackElo "1309"]
[Annotator "NA"]
[PlyCount "51"]
[EventDate "2018.10.04"]
[EventType "swiss"]
[EventCountry "POR"]
[SourceTitle "playchess.com"]
[Source "ChessBase"]
[SourceQuality "1"]
[TimeControl "5400+30"]

{[%evp 11,51,-17,51,32767,32767,32767,32767,338,358,32767,32767,32767,32767,32767,656,714,32767,32767,32767,714,32767,32767,1020,32767,32767,32767,1363,32767,1481,1902,32767,1653,1761,2102,29992,32767,2680,32767,29993,29994,32767,29995]} 1. Nf3 {[%emt 0:00:00]} d5 {[%emt 0:07:46]} 2. d4 {[%emt 0:00:06]} Bf5 {[%emt 0:01:14]} 3. g3 {[%emt 0:00:12]} e6 {[%emt 0:00:43] D02: 1 d4 d5 2 Nf3 sidelines, including 2...Nf6 3 g3 and 2...Nf6 3 Bf4} (3... Nf6 4. Bg2 e6 5. O-O Bd6 6. c4 c6 7. Nc3 Nbd7 8. Nd2 O-O 9. e4 dxe4 10. Ndxe4 Nxe4 11. Nxe4 Bxe4 12. Bxe4 Nf6 13. Bf3 Qa5 14. Qb3 Qb6 15. Qc2 c5 16. dxc5 Bxc5 {½-½ (72) Zhou,J (2620)-Li,C (2758) Wuxi 2016}) 4. Bg2 {[%emt 0:00:05]} c5 {[%emt 0:00:43]} 5. O-O {[%emt 0:00:30]} Nc6 {[%emt 0:01:05]} 6. c3 {[%emt 0:02:49]} Qa5 $146 {[%emt 0:05:48]} (6... Nf6 $11) ({Predecessor:} 6... h6 7. dxc5 Bxc5 8. Nd4 Bg6 9. Nxc6 bxc6 10. Qa4 Qd7 11. e4 Nf6 {0-1 (64) Djukic,B (2280)-Trkulja,G (2390) Sarajevo 2013}) 7. dxc5 {[%emt 0:06:27]} Bxb1 {[%emt 0:01:22]} 8. b4 {[%emt 0:00:19]} Qa6 {[%emt 0:02:51]} 9. Rxb1 {[%emt 0:00:56]} Qxa2 {[%emt 0:00:09]} 10. Nd2 {[%emt 0:02:12]} Ne5 {[%emt 0:01:50]} 11. Rb2 {[%emt 0:03:31]} Qa6 {[%emt 0:01:09]} 12. Re1 {[%emt 0:13:45]} Nc4 $2 {[%emt 0:03:01]} (12... Nf6 13. e4 Nd3) 13. Nxc4 {[%emt 0:00:11]} Qxc4 {[%emt 0:00:07]} 14. Qa4+ {[%emt 0:00:06]} Kd8 {[%emt 0:00:46]} 15. Qa5+ {[%emt 0:00:41]} Kc8 {[%emt 0:02:10]} 16. Bf4 {[%emt 0:01:09]} b6 {[%emt 0:01:34]} 17. cxb6 {[%emt 0:02:01]} Kb7 {[%emt 0:00:55]} 18. Ra2 {[%emt 0:00:43]} a6 {[%emt 0:05:11]} 19. e4 {[%emt 0:02:29]} Ne7 {[%emt 0:03:23]} 20. Bf1 {[%emt 0:01:09]} Nc6 {[%emt 0:01:58]} 21. Qa3 {[%emt 0:01:21]} Qxa2 {[%emt 0:03:04]} 22. Qxa2 {[%emt 0:00:38]} dxe4 {[%emt 0:01:05]} 23. Bc7 {[%emt 0:01:14]} Be7 {[%emt 0:01:16]} 24. Bg2 {[%emt 0:00:23]} Bd8 {[%emt 0:00:51]} 25. Bxe4 {[%emt 0:01:07]} Bxc7 {[%emt 0:00:20]} 26. Qc4 {[%emt 0:00:59]} 1-0

[Event "Guimaraes Open 2018"]
[Site "Guimaraes"]
[Date "2018.10.07"]
[Round "6"]
[White "Marques, Ricardo Taborda Tri"]
[Black "Rey Malde, Henrique"]
[Result "0-1"]
[ECO "B76"]
[WhiteElo "1881"]
[BlackElo "2177"]
[Annotator "NA"]
[PlyCount "52"]
[EventDate "2018.10.04"]
[EventType "swiss"]
[EventCountry "POR"]
[SourceTitle "playchess.com"]
[Source "ChessBase"]
[SourceQuality "1"]
[TimeControl "5400+30"]

1. e4 {[%emt 0:00:00]} c5 {[%emt 0:06:58]} 2. Nf3 {[%emt 0:00:00]} d6 {[%emt 0:00:09]} 3. d4 {[%emt 0:00:00]} cxd4 {[%emt 0:00:10]} 4. Nxd4 {[%emt 0:00:00]} Nf6 {[%emt 0:00:14]} 5. Nc3 {[%emt 0:00:00]} g6 {[%emt 0:00:09]} 6. Be3 {[%emt 0:00:05]} Bg7 {[%emt 0:00:13]} 7. f3 {[%emt 0:00:09]} O-O {[%emt 0:00:10]} 8. Qd2 {[%emt 0:00:03]} Nc6 {[%emt 0:00:08]} 9. O-O-O {[%emt 0:00:08]} d5 {[%emt 0:00:18]} 10. Qe1 {[%emt 0:00:10]} e5 {[%emt 0:00:30]} 11. Nxc6 {[%emt 0:00:05]} bxc6 {[%emt 0:00:03]} 12. exd5 {[%emt 0:00:07]} Nxd5 {[%emt 0:00:25]} 13. Bc4 {[%emt 0:00:07]} Be6 {[%emt 0:00:37]} 14. Ne4 {[%emt 0:00:12] LiveBook: 159 Partien} Qc7 {[%emt 0:01:16]} 15. Bc5 {[%emt 0:00:11]} Rfd8 {[%emt 0:00:20]} 16. g4 {[%emt 0:00:28]} Nf4 {[%emt 0:03:39]} 17. Bxe6 {[%emt 0:14:03] B76: Sicilian Dragon: Yugoslav Attack, 9 g4 and 9 0-0-0} (17. Qc3 Rd4 18. Bxd4 exd4 19. Qb4 d3 20. Bxe6 Ne2+ 21. Kb1 Rb8 22. Bxf7+ Kh8 23. Qxb8+ Qxb8 24. c3 Nxc3+ 25. Nxc3 Bxc3 {1-0 (41) Svidler,P (2738)-Radjabov,T (2744) Sochi 2008 CBM 126 [Ftacnik,L]}) 17... Nxe6 {[%emt 0:00:06]} 18. Be3 {[%emt 0:12:46] [#]} Rd5 $146 {[%emt 0:07:47]} ({Predecessor:} 18... Rxd1+ 19. Qxd1 Qa5 20. Kb1 Rb8 21. c3 Nc7 22. Qd6 Bf8 23. Qxc6 Nb5 24. Ka1 Bg7 {1-0 (35) Gascon del Nogal,J (2268)-Alsina Leal,D (2538) Barcelona 2013}) 19. Qh4 {[%emt 0:05:24]} Rad8 {[%emt 0:14:13]} 20. Bh6 {[%emt 0:14:44]} Nd4 {[%emt 0:12:48]} 21. Rxd4 {[%emt 0:03:37]} exd4 {[%emt 0:00:30]} 22. Bxg7 {[%emt 0:02:52]} (22. Kd1 {war angesagt.}) 22... Kxg7 {[%emt 0:00:09]} 23. g5 {[%emt 0:00:31]} (23. Qf6+ {was necessary.} Kg8 24. h4) 23... Rf5 {[%emt 0:08:19]} 24. Qh6+ {[%emt 0:02:35]} Kh8 {[%emt 0:00:05]} 25. Nf6 {[%emt 0:00:42]} (25. Qh4 $142) 25... Qf4+ {[%emt 0:00:08]} 26. Kb1 {[%emt 0:00:28]} Rxf6 $19 {[%emt 0:00:07]} 0-1

[Event "Guimaraes Open 2018"]
[Site "Guimaraes"]
[Date "2018.10.07"]
[Round "6"]
[White "Cordeiro, Joao Carlos Santos "]
[Black "Navarro Martinez, Victor"]
[Result "0-1"]
[ECO "B24"]
[WhiteElo "1792"]
[BlackElo "1505"]
[Annotator "NA"]
[PlyCount "69"]
[EventDate "2018.10.04"]
[EventType "swiss"]
[EventCountry "POR"]
[SourceTitle "playchess.com"]
[Source "ChessBase"]
[SourceQuality "1"]
[TimeControl "5400+30"]

1. e4 {[%emt 0:00:00]} c5 {[%emt 0:00:00]} 2. Nc3 {[%emt 0:00:00]} Nc6 {[%emt 0:00:00]} 3. g3 {[%emt 0:00:00]} g6 {[%emt 0:00:25]} 4. Bg2 {[%emt 0:00:00]} Bg7 {[%emt 0:00:44]} 5. d3 {[%emt 0:00:12]} Rb8 {[%emt 0:00:42]} 6. Be3 {[%emt 0:01:30]} b5 {[%emt 0:03:36]} 7. Qd2 {[%emt 0:03:36]} b4 {[%emt 0:03:33]} 8. Nd1 {[%emt 0:00:08]} d6 9. f4 {[%emt 0:02:44]} Qc7 {[%emt 0:07:24]} 10. Nf3 {[%emt 0:05:24]} e6 {[%emt 0:01:42]} 11. O-O {[%emt 0:00:56]} Nge7 {[%emt 0:00:51]} 12. h3 {[%emt 0:09:30]} O-O {[%emt 0:03:54]} 13. Bf2 {[%emt 0:00:57]} a5 {[%emt 0:02:32]} 14. c3 {[%emt 0:00:29]} Ba6 {[%emt 0:05:19]} 15. Re1 {[%emt 0:00:54]} Na7 {[%emt 0:02:19]} 16. d4 {[%emt 0:26:23]} f5 {[%emt 0:12:37]} 17. Ng5 {[%emt 0:06:25]} Bc4 {[%emt 0:07:02]} 18. exf5 {[%emt 0:08:31]} exf5 {[%emt 0:01:12]} 19. d5 {[%emt 0:16:34]} bxc3 {[%emt 0:03:12]} 20. bxc3 {[%emt 0:00:29]} Qb7 {[%emt 0:00:34]} 21. Ne3 {[%emt 0:04:50]} Ba6 {[%emt 0:01:49]} 22. Ne6 {[%emt 0:01:43]} Rfe8 {[%emt 0:00:58]} 23. Nxg7 {[%emt 0:00:47]} Kxg7 {[%emt 0:00:17]} 24. c4 {[%emt 0:01:02]} Qb4 {[%emt 0:02:59]} 25. Qc2 {[%emt 0:02:15]} Qb2 {[%emt 0:02:08]} 26. Qd3 {[%emt 0:01:53]} Qd4 {[%emt 0:02:17]} 27. Nxf5+ {[%emt 0:01:04]} Nxf5 {[%emt 0:01:14]} 28. Bxd4+ {[%emt 0:00:06]} Nxd4 {[%emt 0:01:31]} 29. Rxe8 {[%emt 0:02:43]} Rxe8 {[%emt 0:00:06]} 30. Rb1 {[%emt 0:00:35]} Nc8 {[%emt 0:03:46]} 31. a4 {[%emt 0:01:25]} Re2 {[%emt 0:01:10]} 32. g4 {[%emt 0:01:30]} Rc2 {[%emt 0:01:06]} 33. Qe3 {[%emt 0:01:04]} Re2 {[%emt 0:00:04]} 34. Qd3 {[%emt 0:00:39]} Rc2 {[%emt 0:00:15]} 35. Qd1 {[%emt 0:00:00]} 0-1

[Event "Guimaraes Open 2018"]
[Site "Guimaraes"]
[Date "2018.10.07"]
[Round "6"]
[White "Silva, Tiago Alexandre Pin"]
[Black "Dias, Ricardo Pedro Cruz"]
[Result "0-1"]
[ECO "C88"]
[WhiteElo "1757"]
[BlackElo "2098"]
[Annotator "NA"]
[PlyCount "56"]
[EventDate "2018.10.04"]
[EventType "swiss"]
[EventCountry "POR"]
[SourceTitle "playchess.com"]
[Source "ChessBase"]
[SourceQuality "1"]
[TimeControl "5400+30"]

1. e4 {[%emt 0:00:00]} e5 {[%emt 0:00:51]} 2. Nf3 {[%emt 0:00:00]} Nc6 {[%emt 0:00:05]} 3. Bb5 {[%emt 0:03:25]} a6 {[%emt 0:00:17]} 4. Ba4 {[%emt 0:02:23]} Nf6 {[%emt 0:00:09]} 5. O-O {[%emt 0:00:31]} Be7 {[%emt 0:00:06]} 6. Re1 {[%emt 0:00:21]} b5 {[%emt 0:00:07]} 7. Bb3 {[%emt 0:00:05]} O-O {[%emt 0:00:04]} 8. a4 {[%emt 0:02:04]} b4 {[%emt 0:00:08]} 9. c3 {[%emt 0:00:48] LiveBook: 36 Games} d6 {[%emt 0:04:01]} 10. d4 {[%emt 0:01:48]} exd4 {[%emt 0:10:34] C90: Closed Ruy Lopez with 7...d6: Early deviations} (10... Rb8 11. h3 bxc3 12. bxc3 Be6 13. d5 Na5 14. Ba2 Bd7 15. Ba3 Qe8 16. Qd3 Bxa4 17. Bb4 Nb7 18. Qxa6 Bb5 19. Qa7 c5 20. dxc6 Bxc6 {½-½ (44) Short,N (2663)-Werle,J (2607) Wijk aan Zee 2009}) 11. Nxd4 {[%emt 0:04:18]} Bd7 {[%emt 0:02:57]} 12. Bc2 $146 {[%emt 0:08:41]} ({Predecessor:} 12. Nxc6 Bxc6 13. Bd5 Bxd5 14. exd5 bxc3 15. Nxc3 Re8 16. b4 Nd7 17. Bd2 Rb8 18. Rb1 Ne5 19. b5 a5 20. Ne4 Bf6 21. Nxf6+ {1-0 (21) Hallengren,B-Capello,A WCCF email 2002}) 12... Rb8 {[%emt 0:00:24]} 13. a5 {[%emt 0:07:43]} Re8 {[%emt 0:04:09]} 14. Bg5 {[%emt 0:07:25]} h6 {[%emt 0:00:43]} 15. Bh4 {[%emt 0:01:31]} Ne5 {[%emt 0:06:26]} 16. Nd2 {[%emt 0:05:55]} Bf8 {[%emt 0:07:55]} 17. h3 {[%emt 0:05:58]} c5 {[%emt 0:34:09]} 18. N4f3 {[%emt 0:05:23]} Ng6 {[%emt 0:02:39]} 19. Bg3 {[%emt 0:03:25]} Nh5 {[%emt 0:00:54]} 20. Bh2 {[%emt 0:01:57]} Nhf4 $14 {[%emt 0:02:44]} 21. Nc4 {[%emt 0:03:39]} Bc6 {[%emt 0:01:28]} 22. Qd2 {[%emt 0:08:14]} Qf6 {[%emt 0:00:47]} 23. Bd1 {[%emt 0:06:32]} Rxe4 {[%emt 0:01:59]} 24. Rxe4 {[%emt 0:02:08]} Bxe4 {[%emt 0:00:06]} 25. Nb6 {[%emt 0:01:41]} Rd8 {[%emt 0:03:43]} 26. Qe3 {[%emt 0:01:31]} Bc6 {[%emt 0:00:37]} 27. Nc4 {[%emt 0:02:38]} Re8 {[%emt 0:02:13]} 28. Qd2 {[%emt 0:00:08]} Nxh3+ {[%emt 0:01:02]} 0-1

[Event "Guimaraes Open 2018"]
[Site "Guimaraes"]
[Date "2018.10.07"]
[Round "6"]
[White "Andrade, Ricardo Sarmento"]
[Black "Fernandes, Miguel Antonio"]
[Result "0-1"]
[ECO "C00"]
[WhiteElo "1751"]
[BlackElo "2048"]
[Annotator "NA"]
[PlyCount "114"]
[EventDate "2018.10.04"]
[EventType "swiss"]
[EventCountry "POR"]
[SourceTitle "playchess.com"]
[Source "ChessBase"]
[SourceQuality "1"]
[TimeControl "5400+30"]

1. e4 {[%emt 0:01:00]} e6 {[%emt 0:00:00]} 2. d4 {[%emt 0:00:24]} c5 {[%emt 0:00:02]} 3. d5 {[%emt 0:00:40]} exd5 {[%emt 0:00:13]} 4. exd5 {[%emt 0:00:08]} d6 {[%emt 0:00:12]} 5. Nc3 {[%emt 0:00:26]} Nf6 {[%emt 0:00:12]} 6. Nf3 {[%emt 0:00:28]} Be7 {[%emt 0:00:10]} 7. Be2 {[%emt 0:01:05]} O-O {[%emt 0:00:13]} 8. O-O {[%emt 0:00:04]} Na6 {[%emt 0:00:29] LiveBook: 66 Games} 9. Nd2 {[%emt 0:06:02] A43: Schmid Benoni} Nc7 {[%emt 0:05:33]} 10. Nde4 {[%emt 0:06:30]} Bf5 {[%emt 0:04:39]} 11. Ng3 {[%emt 0:02:16]} Bg6 $146 {[%emt 0:00:43]} ({Predecessor:} 11... Bd7 12. a4 Re8 13. Bf4 a6 14. a5 Bf8 15. Re1 Rb8 16. Qd2 Nb5 17. Na4 {1-0 (17) Kuzmicz,K (2352)-Miton,K (2636) Warsaw 2005}) 12. f4 {[%emt 0:01:56]} h6 {[%emt 0:03:19]} 13. f5 {[%emt 0:02:55]} Bh7 {[%emt 0:00:05]} 14. Bf4 {[%emt 0:00:08]} Qd7 {[%emt 0:03:13]} 15. Qd2 {[%emt 0:00:46]} b5 {[%emt 0:03:27]} 16. Bf3 {[%emt 0:08:38]} b4 {[%emt 0:07:52]} 17. Nce2 {[%emt 0:01:36]} Rfe8 {[%emt 0:02:20]} 18. c4 {[%emt 0:03:47]} bxc3 {[%emt 0:00:36]} 19. bxc3 {[%emt 0:04:29]} Bf8 {[%emt 0:01:32]} ({Black should try} 19... Qa4 $11) 20. c4 {[%emt 0:01:12]} Bxf5 {[%emt 0:06:39]} 21. Nxf5 {[%emt 0:00:19]} Qxf5 {[%emt 0:00:05]} 22. Ng3 {[%emt 0:00:40]} Qd7 {[%emt 0:02:41]} 23. Rab1 {[%emt 0:07:50]} ({Lieber} 23. h3 $14) 23... Rab8 {[%emt 0:01:12]} 24. Rxb8 {[%emt 0:01:34]} Rxb8 {[%emt 0:00:09]} 25. Be2 {[%emt 0:01:02]} Nce8 {[%emt 0:02:53]} 26. Bd3 {[%emt 0:00:41]} Qa4 {[%emt 0:03:45]} 27. Rf3 {[%emt 0:13:28]} Qb4 {[%emt 0:03:33]} 28. Qe3 $17 {[%emt 0:24:21]} ({White should play} 28. Qc2 $15) 28... Ng4 {[%emt 0:05:30]} 29. Qc1 {[%emt 0:01:48]} Qb2 {[%emt 0:05:19]} 30. Qxb2 {[%emt 0:00:09]} Rxb2 {[%emt 0:00:04]} 31. h3 {[%emt 0:00:08]} Ngf6 {[%emt 0:03:41]} 32. Rf2 {[%emt 0:00:07]} Rxf2 {[%emt 0:01:17]} 33. Kxf2 {[%emt 0:00:01]} g6 {[%emt 0:02:26]} 34. Bd2 {[%emt 0:02:17]} Nd7 {[%emt 0:00:50]} 35. Bc3 {[%emt 0:01:04]} Bg7 {[%emt 0:01:20]} 36. Ba5 {[%emt 0:01:44]} Ne5 {[%emt 0:02:27]} 37. Be2 {[%emt 0:00:47]} Bf6 {[%emt 0:02:33]} 38. Ne4 {[%emt 0:00:43]} Be7 {[%emt 0:00:54]} 39. Nc3 {[%emt 0:00:22]} a6 {[%emt 0:00:58]} 40. Na4 {[%emt 0:02:06]} f5 {[%emt 0:00:52]} 41. Bd2 {[%emt 0:00:22]} g5 {[%emt 0:02:14]} 42. g4 {[%emt 0:01:28]} fxg4 {[%emt 0:00:57]} 43. hxg4 {[%emt 0:00:02]} Nf6 {[%emt 0:00:08]} 44. Bc3 {[%emt 0:01:06]} Nfxg4+ {[%emt 0:02:31]} 45. Kg3 {[%emt 0:00:08]} Nf6 {[%emt 0:02:32]} 46. Bxe5 {[%emt 0:00:25]} dxe5 {[%emt 0:00:06]} 47. Nb2 {[%emt 0:01:40]} e4 {[%emt 0:00:39]} 48. Nd1 {[%emt 0:00:06]} Bd6+ {[%emt 0:00:44]} 49. Kf2 {[%emt 0:01:25]} Kf7 {[%emt 0:03:09]} 50. Ne3 {[%emt 0:00:16]} Kg6 {[%emt 0:00:43]} 51. Ng4 {[%emt 0:00:16]} Bf4 {[%emt 0:03:07]} 52. Nxf6 {[%emt 0:00:16]} Kxf6 {[%emt 0:01:02]} 53. Kg2 {[%emt 0:00:00]} Ke5 {[%emt 0:00:31]} 54. Kh3 {[%emt 0:01:12]} Kd4 {[%emt 0:00:29]} 55. Kg2 {[%emt 0:01:25]} Kc3 {[%emt 0:00:27]} 56. Kh3 {[%emt 0:00:13]} Kd2 {[%emt 0:00:11]} 57. Bg4 {[%emt 0:00:29]} e3 {[%emt 0:00:08]} 0-1

[Event "Guimaraes Open 2018"]
[Site "Guimaraes"]
[Date "2018.10.07"]
[Round "6"]
[White "Martins, Jose Carlos Caetano"]
[Black "Sousa, Hugo Carneiro"]
[Result "0-1"]
[ECO "C06"]
[WhiteElo "1679"]
[BlackElo "2014"]
[Annotator "NA"]
[PlyCount "98"]
[EventDate "2018.10.04"]
[EventType "swiss"]
[EventCountry "POR"]
[SourceTitle "playchess.com"]
[Source "ChessBase"]
[SourceQuality "1"]
[TimeControl "5400+30"]

1. e4 {[%emt 0:00:00]} e6 {[%emt 0:00:00]} 2. d4 {[%emt 0:00:00]} d5 {[%emt 0:00:00]} 3. Nd2 {[%emt 0:00:00]} Nf6 {[%emt 0:00:00]} 4. e5 {[%emt 0:00:16]} Nfd7 {[%emt 0:00:00]} 5. Bd3 {[%emt 0:00:27]} c5 {[%emt 0:00:07]} 6. c3 {[%emt 0:00:25]} Nc6 {[%emt 0:00:09]} 7. Ne2 {[%emt 0:00:22]} cxd4 {[%emt 0:00:12]} 8. cxd4 {[%emt 0:00:17]} f6 {[%emt 0:00:06]} 9. exf6 {[%emt 0:01:22]} Nxf6 {[%emt 0:00:10]} 10. O-O {[%emt 0:02:04]} Bd6 {[%emt 0:00:08] LiveBook: 1377 Games} 11. Nf3 {[%emt 0:01:38]} Qc7 {[%emt 0:00:40]} 12. Nc3 {[%emt 0:05:55]} a6 {[%emt 0:01:59]} 13. a3 {[%emt 0:01:02]} O-O {[%emt 0:02:17]} 14. Re1 {[%emt 0:02:20]} Bd7 {[%emt 0:05:11]} 15. Qc2 {[%emt 0:03:30]} Rae8 {[%emt 0:05:26]} 16. Bg5 {[%emt 0:03:28]} Re7 {[%emt 0:07:36]} ({Besser ist} 16... Ng4 $17 17. Bxh7+ Kh8) 17. Ne2 {[%emt 0:10:32]} Qb6 {[%emt 0:08:01]} 18. Rad1 {[%emt 0:01:38]} Kh8 {[%emt 0:04:57]} 19. g3 {[%emt 0:02:18]} (19. Nf4 $14) 19... Be8 {[%emt 0:23:52]} 20. Nf4 {[%emt 0:03:28]} (20. h3 $11 {keeps the balance.}) 20... Bxf4 {[%emt 0:01:15]} 21. Bxf4 {[%emt 0:00:08]} Bh5 {[%emt 0:00:25]} 22. Be2 {[%emt 0:02:23]} Ne4 {[%emt 0:12:03]} 23. Ne5 {[%emt 0:12:32]} Bxe2 {[%emt 0:03:25]} ({Viel schlechter ist} 23... Nxd4 $6 24. Rxd4 Qxd4 25. Bxh5 $16) 24. Qxe2 {[%emt 0:00:07]} Nxe5 {[%emt 0:04:29]} 25. dxe5 {[%emt 0:01:00]} Ref7 {[%emt 0:01:47]} 26. Be3 $11 {[%emt 0:02:12]} Qc7 {[%emt 0:00:42]} 27. Bd4 {[%emt 0:02:09]} Rc8 {[%emt 0:03:22]} 28. Qh5 {[%emt 0:02:56]} Rf5 {[%emt 0:01:59]} 29. Qe2 {[%emt 0:02:03]} Ng5 {[%emt 0:01:54]} 30. f4 {[%emt 0:01:37]} Ne4 {[%emt 0:00:14]} 31. Be3 {[%emt 0:00:54]} Rff8 {[%emt 0:00:52]} 32. Rc1 {[%emt 0:02:45]} Qd7 {[%emt 0:00:07]} 33. Rxc8 {[%emt 0:00:28]} Rxc8 {[%emt 0:00:01]} 34. Rc1 {[%emt 0:00:04]} Kg8 {[%emt 0:00:20]} 35. Qd1 {[%emt 0:01:05]} Kf8 {[%emt 0:01:56]} 36. Rxc8+ {[%emt 0:00:37]} Qxc8 {[%emt 0:00:03]} 37. Qc1 {[%emt 0:00:20]} Qxc1+ {[%emt 0:01:03]} 38. Bxc1 {[%emt 0:00:01]} d4 {[%emt 0:01:04]} 39. Kf1 {[%emt 0:01:15]} d3 {[%emt 0:00:04]} 40. Be3 {[%emt 0:03:41]} h5 {[%emt 0:04:24]} 41. Ke1 {[%emt 0:00:26]} Kf7 {[%emt 0:01:12]} 42. h3 {[%emt 0:01:23]} Ke7 {[%emt 0:00:48]} 43. a4 {[%emt 0:00:20]} b5 {[%emt 0:00:44]} 44. axb5 {[%emt 0:01:15]} axb5 {[%emt 0:00:01]} 45. g4 {[%emt 0:00:27]} g6 {[%emt 0:00:32]} 46. b4 {[%emt 0:03:50]} Kd7 {[%emt 0:00:29]} 47. Kd1 {[%emt 0:02:12]} Kc6 {[%emt 0:00:09]} 48. gxh5 {[%emt 0:00:14]} gxh5 {[%emt 0:00:02]} 49. h4 {[%emt 0:00:20]} Kd7 {[%emt 0:00:19]} 0-1

[Event "Guimaraes Open 2018"]
[Site "Guimaraes"]
[Date "2018.10.07"]
[Round "6"]
[White "Dias, Jose Oliveira Gaspa"]
[Black "Cimpean, Andra"]
[Result "0-1"]
[ECO "A06"]
[WhiteElo "1605"]
[BlackElo "1867"]
[Annotator "NA"]
[PlyCount "62"]
[EventDate "2018.10.04"]
[EventType "swiss"]
[EventCountry "POR"]
[SourceTitle "playchess.com"]
[Source "ChessBase"]
[SourceQuality "1"]
[TimeControl "5400+30"]

1. Nf3 {[%emt 0:01:06]} d5 {[%emt 0:00:00]} 2. d4 {[%emt 0:00:36]} c6 {[%emt 0:00:15]} 3. Bf4 {[%emt 0:00:09]} Qb6 {[%emt 0:01:40]} 4. Qc1 {[%emt 0:00:12]} Bf5 {[%emt 0:01:53] LiveBook: 72 Partien} 5. e3 {[%emt 0:00:30]} Nf6 {[%emt 0:00:26]} 6. h3 {[%emt 0:00:06] D02: 1 d4 d5 2 Nf3 sidelines, including 2...Nf6 3 g3 and 2...Nf6 3 Bf4} Nbd7 {[%emt 0:00:30]} 7. Nbd2 {[%emt 0:00:24]} e6 {[%emt 0:01:15]} 8. Be2 {[%emt 0:00:10]} Be7 {[%emt 0:00:37]} 9. O-O {[%emt 0:00:06]} O-O {[%emt 0:00:14]} (9... Ne4 10. c4 g5 11. Bh2 Ndf6 12. g4 Bg6 13. Ne5 Nxd2 14. Qxd2 {1-0 (66) Tihonov,J (2385)-Nasuta,G (2491) Suwalki 2018}) 10. c4 {[%emt 0:00:16]} c5 {[%emt 0:00:59]} 11. b3 {[%emt 0:01:34]} Rac8 {[%emt 0:01:37]} 12. Qb2 {[%emt 0:07:33]} Ne4 {[%emt 0:07:40]} 13. Rfd1 $146 {[%emt 0:05:14]} ({Predecessor:} 13. cxd5 exd5 14. Rac1 c4 15. Rfd1 c3 16. Qb1 cxd2 17. Rxc8 Rxc8 18. Nxd2 Ng3 19. Bd3 Ne2+ 20. Kh2 Nc3 {0-1 (20) Frank,M-Schulmann,W Buenos Aires 1990}) 13... Bf6 {[%emt 0:03:02]} 14. Nxe4 {[%emt 0:00:55]} dxe4 {[%emt 0:02:39]} 15. Ne5 {[%emt 0:00:03]} Nxe5 {[%emt 0:03:55]} 16. dxe5 Be7 17. Rd7 {[%emt 0:07:08]} Rc7 {[%emt 0:00:37]} 18. Rad1 {[%emt 0:00:13]} Qc6 {[%emt 0:02:05]} 19. Qd2 {[%emt 0:00:55]} h6 {[%emt 0:00:48]} 20. g4 {[%emt 0:00:52]} Bg6 {[%emt 0:00:19]} 21. Rxc7 {[%emt 0:00:15]} Qxc7 {[%emt 0:00:09]} 22. Qd7 {[%emt 0:00:09]} Rc8 $14 {[%emt 0:00:58]} 23. Qa4 {[%emt 0:02:57]} Rd8 {[%emt 0:01:18]} 24. Rxd8+ {[%emt 0:01:21]} Qxd8 {[%emt 0:00:11]} 25. Qxa7 Qd2 {[%emt 0:00:43]} 26. Bf1 {[%emt 0:00:26]} Bh4 {[%emt 0:00:12]} 27. Bg3 {[%emt 0:00:53]} Bxg3 {[%emt 0:00:08]} 28. fxg3 {[%emt 0:00:12]} Qxe3+ {[%emt 0:00:12]} 29. Kh2 {[%emt 0:00:03]} Qf2+ {[%emt 0:00:48]} 30. Bg2 {[%emt 0:00:02]} e3 {[%emt 0:00:20]} 31. Qxb7 {[%emt 0:00:13]} e2 {[%emt 0:00:17]} 0-1

[Event "Guimaraes Open 2018"]
[Site "Guimaraes"]
[Date "2018.10.07"]
[Round "6"]
[White "Peixoto, Flavio Pimenta"]
[Black "Pipiras, Filipa Fortuna"]
[Result "0-1"]
[ECO "B15"]
[WhiteElo "1464"]
[BlackElo "1853"]
[Annotator "NA"]
[PlyCount "24"]
[EventDate "2018.10.04"]
[EventType "swiss"]
[EventCountry "POR"]
[SourceTitle "playchess.com"]
[Source "ChessBase"]
[SourceQuality "1"]
[TimeControl "5400+30"]

1. e4 {[%emt 0:00:00]} c6 {[%emt 0:02:10]} 2. Nc3 {[%emt 0:01:45]} d5 {[%emt 0:00:57]} 3. d4 {[%emt 0:01:21]} dxe4 {[%emt 0:00:25]} 4. Nxe4 {[%emt 0:00:16]} Nf6 {[%emt 0:00:37]} 5. Nxf6+ {[%emt 0:03:11]} exf6 {[%emt 0:02:08]} 6. Nf3 {[%emt 0:00:20] LiveBook: 226 Games} Bd6 {[%emt 0:00:55]} 7. Be2 {[%emt 0:00:52]} O-O {[%emt 0:00:39]} 8. O-O {[%emt 0:00:08]} Nd7 {[%emt 0:01:23]} 9. Re1 {[%emt 0:06:51]} Re8 $11 {[%emt 0:02:17]} 10. Be3 {[%emt 0:05:04]} Nf8 {[%emt 0:02:45]} 11. d5 {[%emt 0:05:14]} cxd5 {[%emt 0:04:46]} 12. Qxd5 {[%emt 0:00:19]} Bxh2+ {[%emt 0:00:18]} 0-1